[Event "*** Titled Tuesday Blitz"]
[Site "Chess.com"]
[Date "2021.02.02"]
[Round "1"]
[White "fish7728"]
[Black "Brave_spirit12"]
[Result "0-1"]
[WhiteElo "2136"]
[BlackElo "2513"]
[TimeControl "180+1"]
[EndTime "10:04:18 PST"]
[Termination "Brave_spirit12 won by resignation"]

1. d4 {[%clk 0:03:00.9]} 1... Nf6 {[%clk 0:02:59.1]} 2. c4 {[%clk 0:02:59.2]}
2... e6 {[%clk 0:02:56.4]} 3. Nc3 {[%clk 0:02:58.7]} 3... d5 {[%clk 0:02:55.9]}
4. cxd5 {[%clk 0:02:58]} 4... exd5 {[%clk 0:02:56.8]} 5. Bg5 {[%clk 0:02:57.9]}
5... Be7 {[%clk 0:02:56.1]} 6. e3 {[%clk 0:02:56.4]} 6... c6 {[%clk 0:02:55.7]}
7. Bd3 {[%clk 0:02:56.4]} 7... O-O {[%clk 0:02:54.4]} 8. Qc2 {[%clk 0:02:56.7]}
8... h6 {[%clk 0:02:53]} 9. Bf4 {[%clk 0:02:56.3]} 9... Re8 {[%clk 0:02:51.9]}
10. Nf3 {[%clk 0:02:55.5]} 10... Na6 {[%clk 0:02:50.9]} 11. a3 {[%clk
0:02:54.5]} 11... Nc7 {[%clk 0:02:50.7]} 12. O-O {[%clk 0:02:49.1]} 12... Ne6
{[%clk 0:02:48]} 13. Be5 {[%clk 0:02:46.8]} 13... Bd6 {[%clk 0:02:40.2]} 14. b4
{[%clk 0:02:45.6]} 14... Bxe5 {[%clk 0:02:38.9]} 15. Nxe5 {[%clk 0:02:45.2]}
15... a5 {[%clk 0:02:30.3]} 16. Rfb1 {[%clk 0:02:37.6]} 16... Nd7 {[%clk
0:02:22.2]} 17. f4 {[%clk 0:02:11.2]} 17... Nxe5 {[%clk 0:02:20]} 18. fxe5
{[%clk 0:02:10.1]} 18... Bd7 {[%clk 0:02:13.1]} 19. b5 {[%clk 0:02:04]} 19...
Rc8 {[%clk 0:02:09.8]} 20. b6 {[%clk 0:02:01.3]} 20... c5 {[%clk 0:02:07.1]} 21.
Nb5 {[%clk 0:01:50.7]} 21... cxd4 {[%clk 0:02:04.4]} 22. Qb2 {[%clk 0:01:48.2]}
22... Bxb5 {[%clk 0:01:59.6]} 23. Bxb5 {[%clk 0:01:47.5]} 23... Re7 {[%clk
0:01:59.3]} 24. exd4 {[%clk 0:01:47]} 24... Qxb6 {[%clk 0:01:58.9]} 25. Rd1
{[%clk 0:01:46.9]} 25... Rec7 {[%clk 0:01:58]} 26. a4 {[%clk 0:01:45.8]} 26...
Rc2 {[%clk 0:01:56.9]} 27. Qb3 {[%clk 0:01:45.9]} 27... Nxd4 {[%clk 0:01:55.9]}
28. Qxd5 {[%clk 0:01:32.4]} 28... Nb3+ {[%clk 0:01:46.6]} 29. Kh1 {[%clk
0:01:31.2]} 29... Nxa1 {[%clk 0:01:46.8]} 30. e6 {[%clk 0:01:22]} 30... Qxe6
{[%clk 0:01:41.5]} 0-1

[Event "*** Titled Tuesday Blitz"]
[Site "Chess.com"]
[Date "2021.02.02"]
[Round "1"]
[White "Alexandr_Kholin"]
[Black "Dedic8"]
[Result "0-1"]
[WhiteElo "2416"]
[BlackElo "2808"]
[TimeControl "180+1"]
[EndTime "10:04:19 PST"]
[Termination "Dedic8 won by resignation"]

1. d4 {[%clk 0:02:53.9]} 1... Nf6 {[%clk 0:02:59.8]} 2. c4 {[%clk 0:02:52]} 2...
e6 {[%clk 0:03:00.2]} 3. Nc3 {[%clk 0:02:51.6]} 3... Bb4 {[%clk 0:03:00.3]} 4.
e3 {[%clk 0:02:51.9]} 4... O-O {[%clk 0:02:59.8]} 5. Ne2 {[%clk 0:02:52.1]} 5...
c6 {[%clk 0:03:00.4]} 6. a3 {[%clk 0:02:51.5]} 6... Ba5 {[%clk 0:03:01.1]} 7. b4
{[%clk 0:02:50]} 7... Bc7 {[%clk 0:03:01.3]} 8. Bb2 {[%clk 0:02:48]} 8... d5
{[%clk 0:03:01.4]} 9. Ng3 {[%clk 0:02:47.4]} 9... Re8 {[%clk 0:03:01.1]} 10. c5
{[%clk 0:02:44.1]} 10... Nbd7 {[%clk 0:03:00.1]} 11. Be2 {[%clk 0:02:42.5]}
11... e5 {[%clk 0:03:00.5]} 12. dxe5 {[%clk 0:02:42.9]} 12... Nxe5 {[%clk
0:03:00.3]} 13. O-O {[%clk 0:02:41.5]} 13... Neg4 {[%clk 0:02:54.6]} 14. Qc2
{[%clk 0:02:36.3]} 14... Qe7 {[%clk 0:02:50.8]} 15. Rad1 {[%clk 0:02:31.8]}
15... h5 {[%clk 0:02:38]} 16. Rfe1 {[%clk 0:02:24.3]} 16... Nxh2 {[%clk
0:02:23.6]} 17. Nxh5 {[%clk 0:02:02.3]} 17... Nxh5 {[%clk 0:02:23.3]} 18. Bxh5
{[%clk 0:01:59.9]} 18... Qh4 {[%clk 0:02:12.8]} 19. Be2 {[%clk 0:01:48.6]} 19...
Ng4 {[%clk 0:01:47.6]} 20. Bxg4 {[%clk 0:01:45.2]} 20... Qh2+ {[%clk 0:01:41.7]}
21. Kf1 {[%clk 0:01:44.3]} 21... Bxg4 {[%clk 0:01:40.3]} 0-1

[Event "*** Titled Tuesday Blitz"]
[Site "Chess.com"]
[Date "2021.02.02"]
[Round "1"]
[White "Beltraxtor"]
[Black "jorquerino"]
[Result "1-0"]
[WhiteElo "2588"]
[BlackElo "2287"]
[TimeControl "180+1"]
[EndTime "10:04:24 PST"]
[Termination "Beltraxtor won by resignation"]

1. e4 {[%clk 0:03:00.9]} 1... d5 {[%clk 0:02:59.3]} 2. Nc3 {[%clk 0:02:59.7]}
2... d4 {[%clk 0:02:55.6]} 3. Nce2 {[%clk 0:02:59.7]} 3... e5 {[%clk 0:02:55.4]}
4. Nf3 {[%clk 0:03:00.1]} 4... f6 {[%clk 0:02:52.8]} 5. Ng3 {[%clk 0:02:59.5]}
5... Be6 {[%clk 0:02:52.2]} 6. Bb5+ {[%clk 0:02:54.1]} 6... Nd7 {[%clk
0:02:51.9]} 7. d3 {[%clk 0:02:52.7]} 7... c6 {[%clk 0:02:51.2]} 8. Ba4 {[%clk
0:02:52.7]} 8... Nc5 {[%clk 0:02:40.8]} 9. Bb3 {[%clk 0:02:52.1]} 9... Nxb3
{[%clk 0:02:40.7]} 10. axb3 {[%clk 0:02:52.9]} 10... g6 {[%clk 0:02:37.1]} 11.
O-O {[%clk 0:02:50.9]} 11... Bg7 {[%clk 0:02:35.7]} 12. c3 {[%clk 0:02:39.8]}
12... c5 {[%clk 0:02:31.3]} 13. b4 {[%clk 0:02:40.1]} 13... b6 {[%clk
0:02:26.4]} 14. bxc5 {[%clk 0:02:38.4]} 14... bxc5 {[%clk 0:02:26]} 15. b4
{[%clk 0:02:38.7]} 15... dxc3 {[%clk 0:01:48]} 16. bxc5 {[%clk 0:02:34.8]} 16...
Ne7 {[%clk 0:01:47]} 17. d4 {[%clk 0:02:28.8]} 17... c2 {[%clk 0:01:21.5]} 18.
Qxc2 {[%clk 0:02:28.8]} 18... exd4 {[%clk 0:01:20.8]} 19. Rd1 {[%clk 0:02:26.8]}
19... f5 {[%clk 0:01:16.6]} 20. exf5 {[%clk 0:02:20.1]} 20... Nxf5 {[%clk
0:01:11.8]} 21. Re1 {[%clk 0:02:18]} 21... Qd5 {[%clk 0:00:45.6]} 22. Nxf5
{[%clk 0:02:15.5]} 22... gxf5 {[%clk 0:00:40.7]} 23. Ra6 {[%clk 0:02:15]} 1-0

[Event "*** Titled Tuesday Blitz"]
[Site "Chess.com"]
[Date "2021.02.02"]
[Round "1"]
[White "gilbert_gm"]
[Black "Papullon"]
[Result "1-0"]
[WhiteElo "2514"]
[BlackElo "2140"]
[TimeControl "180+1"]
[EndTime "10:04:25 PST"]
[Termination "gilbert_gm won on time"]

1. a3 {[%clk 0:02:57.3]} 1... g6 {[%clk 0:02:58.5]} 2. g3 {[%clk 0:02:55.7]}
2... Bg7 {[%clk 0:02:58.3]} 3. Bg2 {[%clk 0:02:56.6]} 3... c6 {[%clk 0:02:58.1]}
4. Nf3 {[%clk 0:02:55.9]} 4... d5 {[%clk 0:02:57.9]} 5. O-O {[%clk 0:02:56.2]}
5... Bg4 {[%clk 0:02:55.7]} 6. d3 {[%clk 0:02:55.7]} 6... e6 {[%clk 0:02:53.6]}
7. Ne1 {[%clk 0:02:50.7]} 7... e5 {[%clk 0:02:40]} 8. h3 {[%clk 0:02:48.6]} 8...
Be6 {[%clk 0:02:39.5]} 9. Nc3 {[%clk 0:02:46.4]} 9... f5 {[%clk 0:02:38.1]} 10.
e4 {[%clk 0:02:43]} 10... fxe4 {[%clk 0:02:33.4]} 11. dxe4 {[%clk 0:02:43.9]}
11... d4 {[%clk 0:02:33.3]} 12. Ne2 {[%clk 0:02:43.5]} 12... c5 {[%clk 0:02:26]}
13. f4 {[%clk 0:02:41.1]} 13... Nc6 {[%clk 0:02:25.7]} 14. f5 {[%clk 0:02:33.7]}
14... gxf5 {[%clk 0:02:25]} 15. exf5 {[%clk 0:02:32.9]} 15... Bd5 {[%clk
0:02:24.4]} 16. Bxd5 {[%clk 0:02:28.2]} 16... Qxd5 {[%clk 0:02:23.6]} 17. Nc3
{[%clk 0:02:29.1]} 17... Qf7 {[%clk 0:02:15.5]} 18. Ne4 {[%clk 0:02:28.6]} 18...
b6 {[%clk 0:02:00.7]} 19. Nd6+ {[%clk 0:02:25.9]} 1-0

[Event "*** Titled Tuesday Blitz"]
[Site "Chess.com"]
[Date "2021.02.02"]
[Round "1"]
[White "esrosenberg"]
[Black "chescomhuynya"]
[Result "0-1"]
[WhiteElo "2170"]
[BlackElo "2519"]
[TimeControl "180+1"]
[EndTime "10:04:26 PST"]
[Termination "chescomhuynya won on time"]

1. Nf3 {[%clk 0:03:00.9]} 1... Nf6 {[%clk 0:03:00]} 2. c4 {[%clk 0:03:01]} 2...
c5 {[%clk 0:02:59]} 3. g3 {[%clk 0:03:00.8]} 3... Nc6 {[%clk 0:02:58]} 4. Bg2
{[%clk 0:03:01.1]} 4... g6 {[%clk 0:02:58.2]} 5. Nc3 {[%clk 0:03:01.1]} 5... Bg7
{[%clk 0:02:58.8]} 6. O-O {[%clk 0:03:01.6]} 6... O-O {[%clk 0:02:59.5]} 7. d4
{[%clk 0:03:02]} 7... cxd4 {[%clk 0:03:00.4]} 8. Nxd4 {[%clk 0:03:02.3]} 8...
Nxd4 {[%clk 0:03:01.3]} 9. Qxd4 {[%clk 0:03:02]} 9... d6 {[%clk 0:03:02.2]} 10.
Qd3 {[%clk 0:03:00.3]} 10... Qa5 {[%clk 0:03:02.3]} 11. a3 {[%clk 0:02:49.5]}
11... Qh5 {[%clk 0:03:01.8]} 12. Re1 {[%clk 0:02:39.4]} 12... Bh3 {[%clk
0:03:01.4]} 13. Bxb7 {[%clk 0:02:31.4]} 13... Rab8 {[%clk 0:03:01.5]} 14. Bf3
{[%clk 0:02:26.3]} 14... Ng4 {[%clk 0:03:01.6]} 15. Nd5 {[%clk 0:02:08]} 15...
e5 {[%clk 0:02:57.2]} 16. Ne7+ {[%clk 0:01:42.4]} 16... Kh8 {[%clk 0:02:57.2]}
17. Qxd6 {[%clk 0:01:35.2]} 17... e4 {[%clk 0:02:56.6]} 18. Bxe4 {[%clk
0:00:35.1]} 18... Rfd8 {[%clk 0:02:56.6]} 19. Qf4 {[%clk 0:00:24.2]} 19... Ne5
{[%clk 0:02:44.7]} 20. Nd5 {[%clk 0:00:16.7]} 20... Nxc4 {[%clk 0:02:42.1]} 21.
Ne3 {[%clk 0:00:13.2]} 21... Ne5 {[%clk 0:02:32.6]} 22. Bg2 {[%clk 0:00:11.4]}
22... Bxg2 {[%clk 0:02:31.8]} 0-1

[Event "*** Titled Tuesday Blitz"]
[Site "Chess.com"]
[Date "2021.02.02"]
[Round "1"]
[White "garicradomir"]
[Black "PLAYER_2006_M"]
[Result "0-1"]
[WhiteElo "2200"]
[BlackElo "2528"]
[TimeControl "180+1"]
[EndTime "10:04:29 PST"]
[Termination "PLAYER_2006_M won by resignation"]

1. e4 {[%clk 0:03:00.9]} 1... e6 {[%clk 0:02:59]} 2. d4 {[%clk 0:03:00]} 2... d5
{[%clk 0:02:59.9]} 3. Nc3 {[%clk 0:03:00.5]} 3... Nf6 {[%clk 0:02:59.7]} 4. Bg5
{[%clk 0:02:59.5]} 4... Bb4 {[%clk 0:02:59.1]} 5. e5 {[%clk 0:02:59.8]} 5... h6
{[%clk 0:02:58.9]} 6. Bd2 {[%clk 0:02:59.1]} 6... Bxc3 {[%clk 0:02:58.4]} 7.
bxc3 {[%clk 0:03:00]} 7... Ne4 {[%clk 0:02:58.4]} 8. Qg4 {[%clk 0:03:00.5]} 8...
g6 {[%clk 0:02:58.1]} 9. Bd3 {[%clk 0:02:53.7]} 9... Nxd2 {[%clk 0:02:57.9]} 10.
Kxd2 {[%clk 0:02:54.6]} 10... c5 {[%clk 0:02:58.3]} 11. h4 {[%clk 0:02:53.9]}
11... Bd7 {[%clk 0:02:57.3]} 12. Nh3 {[%clk 0:02:44.3]} 12... Nc6 {[%clk
0:02:44.4]} 13. Nf4 {[%clk 0:02:28.4]} 13... cxd4 {[%clk 0:02:42.4]} 14. Bxg6
{[%clk 0:02:21.8]} 14... dxc3+ {[%clk 0:02:40.4]} 15. Kd1 {[%clk 0:02:19.1]}
15... Nxe5 {[%clk 0:02:37.9]} 16. Qh5 {[%clk 0:02:17.1]} 16... Qf6 {[%clk
0:02:26.7]} 17. Bxf7+ {[%clk 0:01:43.6]} 17... Nxf7 {[%clk 0:02:23.9]} 18. g3
{[%clk 0:01:35.3]} 18... Qd4+ {[%clk 0:02:18.8]} 19. Kc1 {[%clk 0:01:32.7]}
19... Qxf2 {[%clk 0:01:39.5]} 20. a4 {[%clk 0:01:03.6]} 20... Qe3+ {[%clk
0:01:38.5]} 21. Kb1 {[%clk 0:01:01.5]} 21... Qb6+ {[%clk 0:01:38.8]} 0-1

[Event "*** Titled Tuesday Blitz"]
[Site "Chess.com"]
[Date "2021.02.02"]
[Round "1"]
[White "Vaathi_Coming"]
[Black "banane_verte"]
[Result "1-0"]
[WhiteElo "2833"]
[BlackElo "2427"]
[TimeControl "180+1"]
[EndTime "10:04:30 PST"]
[Termination "Vaathi_Coming won by resignation"]

1. Nf3 {[%clk 0:03:00.9]} 1... Nf6 {[%clk 0:02:58.9]} 2. b3 {[%clk 0:03:00.7]}
2... d5 {[%clk 0:02:55.5]} 3. Bb2 {[%clk 0:03:00.6]} 3... c5 {[%clk 0:02:56.1]}
4. e3 {[%clk 0:03:00.7]} 4... e6 {[%clk 0:02:52.9]} 5. Be2 {[%clk 0:02:58.6]}
5... Bd6 {[%clk 0:02:51.8]} 6. O-O {[%clk 0:02:58.9]} 6... O-O {[%clk
0:02:51.8]} 7. d4 {[%clk 0:02:59.5]} 7... Nc6 {[%clk 0:02:47.8]} 8. Nbd2 {[%clk
0:02:59.5]} 8... b6 {[%clk 0:02:38.2]} 9. c4 {[%clk 0:02:59.6]} 9... Bb7 {[%clk
0:02:37.2]} 10. Rc1 {[%clk 0:02:58.3]} 10... Rc8 {[%clk 0:02:31.3]} 11. Qc2
{[%clk 0:02:56.3]} 11... Qe7 {[%clk 0:02:29.6]} 12. Qb1 {[%clk 0:02:55.2]} 12...
e5 {[%clk 0:02:20.4]} 13. cxd5 {[%clk 0:02:38.5]} 13... Nxd5 {[%clk 0:02:15.8]}
14. dxc5 {[%clk 0:02:36.7]} 14... Bxc5 {[%clk 0:02:09.3]} 15. Ne4 {[%clk
0:02:33.7]} 15... Ba3 {[%clk 0:02:03.4]} 16. Bxa3 {[%clk 0:02:30.7]} 16... Qxa3
{[%clk 0:02:04.3]} 17. Nfg5 {[%clk 0:02:30.6]} 17... f5 {[%clk 0:01:55.5]} 18.
Bc4 {[%clk 0:02:27.1]} 18... Na5 {[%clk 0:01:42.7]} 19. Bxd5+ {[%clk 0:01:55.6]}
19... Bxd5 {[%clk 0:01:43.6]} 20. Rxc8 {[%clk 0:01:56]} 20... Rxc8 {[%clk
0:01:40.9]} 21. Ng3 {[%clk 0:01:53.6]} 21... g6 {[%clk 0:01:36.5]} 22. Nxf5
{[%clk 0:01:35.6]} 22... gxf5 {[%clk 0:01:22.3]} 23. Qxf5 {[%clk 0:01:36.5]}
23... Rc7 {[%clk 0:01:23.2]} 24. Qxe5 {[%clk 0:01:36.7]} 24... Bf7 {[%clk
0:01:06.6]} 25. Qxc7 {[%clk 0:01:34.9]} 1-0

[Event "*** Titled Tuesday Blitz"]
[Site "Chess.com"]
[Date "2021.02.02"]
[Round "1"]
[White "Lysiak_Poltorak"]
[Black "sergiochess83"]
[Result "0-1"]
[WhiteElo "2442"]
[BlackElo "2862"]
[TimeControl "180+1"]
[EndTime "10:04:31 PST"]
[Termination "sergiochess83 won by resignation"]

1. d4 {[%clk 0:03:00.9]} 1... Nf6 {[%clk 0:02:58.4]} 2. c4 {[%clk 0:03:00.3]}
2... g6 {[%clk 0:02:58.7]} 3. f3 {[%clk 0:03:00.1]} 3... c5 {[%clk 0:02:56.9]}
4. d5 {[%clk 0:02:59.6]} 4... d6 {[%clk 0:02:57.4]} 5. e4 {[%clk 0:02:59.4]}
5... e6 {[%clk 0:02:57.5]} 6. Nc3 {[%clk 0:02:59.7]} 6... Bg7 {[%clk 0:02:57.3]}
7. Nge2 {[%clk 0:02:58.7]} 7... O-O {[%clk 0:02:56.8]} 8. Ng3 {[%clk 0:02:56.4]}
8... a6 {[%clk 0:02:57]} 9. Be2 {[%clk 0:02:53.8]} 9... exd5 {[%clk 0:02:55.9]}
10. cxd5 {[%clk 0:02:52.1]} 10... b5 {[%clk 0:02:55.6]} 11. Nf1 {[%clk
0:02:41.7]} 11... Nbd7 {[%clk 0:02:51.5]} 12. Ne3 {[%clk 0:02:41.7]} 12... Nh5
{[%clk 0:02:47.2]} 13. O-O {[%clk 0:02:32.9]} 13... Nf4 {[%clk 0:02:26.8]} 14.
g3 {[%clk 0:02:23]} 14... Nxe2+ {[%clk 0:02:24.8]} 15. Qxe2 {[%clk 0:02:23.9]}
15... Re8 {[%clk 0:02:19.1]} 16. a4 {[%clk 0:01:59.2]} 16... b4 {[%clk
0:02:11.1]} 17. Ncd1 {[%clk 0:01:57.1]} 17... a5 {[%clk 0:02:06.9]} 18. Nc4
{[%clk 0:01:55.8]} 18... Ba6 {[%clk 0:02:06.9]} 19. Nde3 {[%clk 0:01:52.4]}
19... Nb6 {[%clk 0:01:47.1]} 20. Ra2 {[%clk 0:01:33.3]} 20... b3 {[%clk
0:01:26.7]} 21. Ra3 {[%clk 0:01:25.6]} 21... Bd4 {[%clk 0:01:26.7]} 22. Rxb3
{[%clk 0:01:07.6]} 22... Bxc4 {[%clk 0:01:24.7]} 0-1

[Event "*** Titled Tuesday Blitz"]
[Site "Chess.com"]
[Date "2021.02.02"]
[Round "1"]
[White "starplatinum2030"]
[Black "FedaMaster"]
[Result "0-1"]
[WhiteElo "2048"]
[BlackElo "2497"]
[TimeControl "180+1"]
[EndTime "10:04:37 PST"]
[Termination "FedaMaster won by resignation"]

1. e4 {[%clk 0:03:00.9]} 1... d5 {[%clk 0:02:59.2]} 2. exd5 {[%clk 0:03:00.5]}
2... Qxd5 {[%clk 0:03:00.1]} 3. Nc3 {[%clk 0:03:00.7]} 3... Qd6 {[%clk
0:03:00.7]} 4. d4 {[%clk 0:03:00.8]} 4... Nf6 {[%clk 0:03:01.2]} 5. Nge2 {[%clk
0:02:57.7]} 5... Bg4 {[%clk 0:03:00.8]} 6. f3 {[%clk 0:02:54.8]} 6... Bf5 {[%clk
0:03:00.3]} 7. Bf4 {[%clk 0:02:54.9]} 7... Qb6 {[%clk 0:02:53.9]} 8. Qd2 {[%clk
0:02:39.2]} 8... Nc6 {[%clk 0:02:53.8]} 9. O-O-O {[%clk 0:02:35.8]} 9... O-O-O
{[%clk 0:02:53]} 10. Na4 {[%clk 0:02:27.5]} 10... Qb5 {[%clk 0:02:52.7]} 11.
Nec3 {[%clk 0:02:06.2]} 11... Qa5 {[%clk 0:02:53.1]} 12. Qf2 {[%clk 0:01:57.3]}
12... e6 {[%clk 0:02:40.6]} 13. Bb5 {[%clk 0:01:53.1]} 13... Nb4 {[%clk
0:02:39]} 14. Bd3 {[%clk 0:01:40.7]} 14... Bxd3 {[%clk 0:02:34.7]} 15. cxd3
{[%clk 0:01:41.6]} 15... Nxa2+ {[%clk 0:02:35.3]} 16. Nxa2 {[%clk 0:01:35.3]}
16... Qxa4 {[%clk 0:02:35.4]} 17. Kb1 {[%clk 0:01:35.3]} 17... Nd5 {[%clk
0:02:28.8]} 18. Bg3 {[%clk 0:01:29]} 18... Bb4 {[%clk 0:02:19.8]} 19. Rc1 {[%clk
0:01:28.2]} 19... Ba5 {[%clk 0:02:13.1]} 20. Rc4 {[%clk 0:01:15.4]} 20... Qb3
{[%clk 0:02:12.9]} 21. Qc2 {[%clk 0:01:06.7]} 21... Qxc2+ {[%clk 0:02:12.4]} 22.
Rxc2 {[%clk 0:01:06.7]} 22... c6 {[%clk 0:02:06.4]} 23. Nc3 {[%clk 0:01:03.9]}
23... Nb4 {[%clk 0:02:04.5]} 24. Rd2 {[%clk 0:00:52.1]} 24... Rxd4 {[%clk
0:02:03.7]} 25. Be5 {[%clk 0:00:51]} 25... Rxd3 {[%clk 0:02:04.2]} 26. Rxd3
{[%clk 0:00:49.9]} 26... Nxd3 {[%clk 0:02:05.1]} 27. Bxg7 {[%clk 0:00:49.5]}
27... Rg8 {[%clk 0:02:05.4]} 28. Kc2 {[%clk 0:00:42.7]} 28... Nb4+ {[%clk
0:02:04.9]} 0-1

[Event "*** Titled Tuesday Blitz"]
[Site "Chess.com"]
[Date "2021.02.02"]
[Round "1"]
[White "Boninknights"]
[Black "ChristopherYoo"]
[Result "0-1"]
[WhiteElo "2446"]
[BlackElo "2869"]
[TimeControl "180+1"]
[EndTime "10:04:39 PST"]
[Termination "ChristopherYoo won by resignation"]

1. d4 {[%clk 0:02:57.4]} 1... g6 {[%clk 0:02:57.7]} 2. Bg5 {[%clk 0:02:55]} 2...
Bg7 {[%clk 0:02:56.8]} 3. c3 {[%clk 0:02:54.6]} 3... h6 {[%clk 0:02:55.7]} 4.
Bh4 {[%clk 0:02:53.4]} 4... d6 {[%clk 0:02:55.5]} 5. Nd2 {[%clk 0:02:52.9]} 5...
Nc6 {[%clk 0:02:54]} 6. e4 {[%clk 0:02:51.8]} 6... g5 {[%clk 0:02:39]} 7. Bg3
{[%clk 0:02:50.6]} 7... e5 {[%clk 0:02:37.8]} 8. d5 {[%clk 0:02:49.7]} 8... Nce7
{[%clk 0:02:37.2]} 9. h4 {[%clk 0:02:48.3]} 9... g4 {[%clk 0:02:32.3]} 10. h5
{[%clk 0:02:44.4]} 10... f5 {[%clk 0:02:27.5]} 11. Bh4 {[%clk 0:02:42.9]} 11...
Nf6 {[%clk 0:02:24.9]} 12. Bxf6 {[%clk 0:02:36.8]} 12... Bxf6 {[%clk 0:02:22.6]}
13. Be2 {[%clk 0:02:34.7]} 13... g3 {[%clk 0:02:09.2]} 14. fxg3 {[%clk
0:02:29.8]} 14... Rg8 {[%clk 0:02:08.6]} 15. Bb5+ {[%clk 0:02:24.6]} 15... c6
{[%clk 0:02:06.4]} 16. dxc6 {[%clk 0:02:23]} 16... bxc6 {[%clk 0:02:07.3]} 17.
Ba4 {[%clk 0:02:17.3]} 17... Rxg3 {[%clk 0:02:00.4]} 18. Nc4 {[%clk 0:02:16.1]}
18... Ba6 {[%clk 0:01:27.7]} 19. Nxd6+ {[%clk 0:02:00.9]} 19... Kf8 {[%clk
0:01:27.1]} 20. Ne2 {[%clk 0:01:57]} 20... Rxg2 {[%clk 0:01:22]} 21. c4 {[%clk
0:01:41.8]} 21... Qb6 {[%clk 0:01:20.9]} 22. Rf1 {[%clk 0:01:27.1]} 22... Bh4+
{[%clk 0:01:16.9]} 23. Kd2 {[%clk 0:01:22]} 23... Qxb2+ {[%clk 0:01:16.5]} 24.
Qc2 {[%clk 0:01:20.8]} 24... Qb4+ {[%clk 0:01:15.7]} 25. Kc1 {[%clk 0:01:14]}
25... Bg5+ {[%clk 0:01:15.1]} 0-1

[Event "*** Titled Tuesday Blitz"]
[Site "Chess.com"]
[Date "2021.02.02"]
[Round "1"]
[White "FMJoseHerrera"]
[Black "CraiggoryC"]
[Result "1-0"]
[WhiteElo "2506"]
[BlackElo "2115"]
[TimeControl "180+1"]
[EndTime "10:04:43 PST"]
[Termination "FMJoseHerrera won by resignation"]

1. Nf3 {[%clk 0:03:00.3]} 1... Nf6 {[%clk 0:02:59.5]} 2. g3 {[%clk 0:03:00.1]}
2... g6 {[%clk 0:02:59.2]} 3. Bg2 {[%clk 0:02:59.7]} 3... Bg7 {[%clk 0:02:59.8]}
4. d3 {[%clk 0:02:59.7]} 4... O-O {[%clk 0:03:00.2]} 5. Nc3 {[%clk 0:02:59.8]}
5... c5 {[%clk 0:03:00.6]} 6. h4 {[%clk 0:02:59.9]} 6... h5 {[%clk 0:02:59.7]}
7. Bg5 {[%clk 0:02:59.4]} 7... d6 {[%clk 0:02:52.5]} 8. Qd2 {[%clk 0:02:59.1]}
8... Nbd7 {[%clk 0:02:49.7]} 9. O-O {[%clk 0:02:55.3]} 9... Rb8 {[%clk
0:02:48.9]} 10. Bh6 {[%clk 0:02:54.7]} 10... b5 {[%clk 0:02:47.3]} 11. Bxg7
{[%clk 0:02:54.9]} 11... Kxg7 {[%clk 0:02:47.2]} 12. Ng5 {[%clk 0:02:52.5]}
12... b4 {[%clk 0:02:37.8]} 13. Nd1 {[%clk 0:02:51.9]} 13... Bb7 {[%clk
0:02:35]} 14. e4 {[%clk 0:02:51.4]} 14... d5 {[%clk 0:02:02.2]} 15. f3 {[%clk
0:02:41.8]} 15... e5 {[%clk 0:01:55.6]} 16. Ne3 {[%clk 0:02:40.1]} 16... Re8
{[%clk 0:01:42.9]} 17. Rae1 {[%clk 0:02:37.2]} 17... d4 {[%clk 0:01:30.4]} 18.
Nc4 {[%clk 0:02:37.1]} 18... Nb6 {[%clk 0:01:25.6]} 19. Na5 {[%clk 0:02:26.5]}
19... Ba8 {[%clk 0:01:25.2]} 20. f4 {[%clk 0:02:25.1]} 20... Nbd7 {[%clk
0:01:21]} 21. Nc4 {[%clk 0:02:23.3]} 21... Ng4 {[%clk 0:01:07.3]} 22. f5 {[%clk
0:02:16.9]} 22... Nb6 {[%clk 0:00:56.9]} 23. fxg6 {[%clk 0:02:10.9]} 23... f6
{[%clk 0:00:51.1]} 24. Nf7 {[%clk 0:02:05.1]} 24... Qe7 {[%clk 0:00:41.6]} 25.
Ncd6 {[%clk 0:02:04.5]} 25... Ne3 {[%clk 0:00:37.9]} 26. Rxe3 {[%clk 0:01:58]}
26... dxe3 {[%clk 0:00:37.5]} 27. Qxe3 {[%clk 0:01:58.9]} 27... Rh8 {[%clk
0:00:29.8]} 28. Nf5+ {[%clk 0:01:57.2]} 1-0

[Event "*** Titled Tuesday Blitz"]
[Site "Chess.com"]
[Date "2021.02.02"]
[Round "1"]
[White "Nastya_Rakhmangulova"]
[Black "WonderChampion"]
[Result "1-0"]
[WhiteElo "2498"]
[BlackElo "2067"]
[TimeControl "180+1"]
[EndTime "10:04:54 PST"]
[Termination "Nastya_Rakhmangulova won by resignation"]

1. e4 {[%clk 0:03:00.9]} 1... c5 {[%clk 0:02:58.8]} 2. Nf3 {[%clk 0:03:00.8]}
2... g6 {[%clk 0:02:57.8]} 3. c3 {[%clk 0:03:00.4]} 3... Nf6 {[%clk 0:02:55.4]}
4. Bd3 {[%clk 0:02:44.8]} 4... Bg7 {[%clk 0:02:52]} 5. Bc2 {[%clk 0:02:45.1]}
5... O-O {[%clk 0:02:44.6]} 6. O-O {[%clk 0:02:45.1]} 6... Nc6 {[%clk
0:02:43.2]} 7. d4 {[%clk 0:02:43.9]} 7... cxd4 {[%clk 0:02:44.1]} 8. cxd4 {[%clk
0:02:44.8]} 8... d5 {[%clk 0:02:43.1]} 9. e5 {[%clk 0:02:44]} 9... Ne8 {[%clk
0:02:39.6]} 10. Bg5 {[%clk 0:02:40.7]} 10... f6 {[%clk 0:02:35.3]} 11. exf6
{[%clk 0:02:29.3]} 11... exf6 {[%clk 0:02:36.2]} 12. Be3 {[%clk 0:02:29.4]}
12... Bg4 {[%clk 0:02:28]} 13. h3 {[%clk 0:02:25.6]} 13... Be6 {[%clk
0:02:25.7]} 14. Nc3 {[%clk 0:02:24.8]} 14... Nd6 {[%clk 0:02:20.1]} 15. Re1
{[%clk 0:02:21.4]} 15... Nc4 {[%clk 0:02:19]} 16. Bf4 {[%clk 0:02:21.1]} 16...
Bf7 {[%clk 0:02:15.3]} 17. b3 {[%clk 0:02:18.2]} 17... Nd6 {[%clk 0:02:09.4]}
18. Rc1 {[%clk 0:02:15.6]} 18... a6 {[%clk 0:01:56.1]} 19. Na4 {[%clk
0:02:14.1]} 19... Nb5 {[%clk 0:01:48.7]} 20. Nc5 {[%clk 0:02:06.3]} 20... b6
{[%clk 0:01:44.1]} 21. Ne6 {[%clk 0:02:06]} 21... Bxe6 {[%clk 0:01:41.2]} 22.
Rxe6 {[%clk 0:02:06.9]} 22... Qd7 {[%clk 0:01:41.1]} 23. Bf5 {[%clk 0:01:57]}
23... gxf5 {[%clk 0:01:38.6]} 24. Rexc6 {[%clk 0:01:50.4]} 24... Qb7 {[%clk
0:01:23.7]} 25. Rc7 {[%clk 0:01:46.1]} 25... Nxc7 {[%clk 0:01:21.6]} 26. Rxc7
{[%clk 0:01:47]} 26... Qb8 {[%clk 0:01:18.8]} 27. Rxg7+ {[%clk 0:01:47]} 27...
Kxg7 {[%clk 0:01:19.7]} 28. Bxb8 {[%clk 0:01:47.6]} 28... Raxb8 {[%clk
0:01:18.5]} 29. Qd3 {[%clk 0:01:47.4]} 29... f4 {[%clk 0:01:15.6]} 30. Qxa6
{[%clk 0:01:43.2]} 30... Rfe8 {[%clk 0:01:13.6]} 31. Qa7+ {[%clk 0:01:41.5]}
31... Kg8 {[%clk 0:01:12.6]} 32. Nh4 {[%clk 0:01:39.4]} 32... Rf8 {[%clk
0:01:06.7]} 33. Nf5 {[%clk 0:01:38.5]} 33... Rf7 {[%clk 0:01:05.1]} 34. Qxb8+
{[%clk 0:01:38.8]} 34... Rf8 {[%clk 0:01:04.9]} 35. Qb7 {[%clk 0:01:38.3]} 35...
Rf7 {[%clk 0:01:04.8]} 36. Nh6+ {[%clk 0:01:38.5]} 1-0